bitfinex/quotes_BTCUSD_20241216
["timestamp","ask_amount","ask_price","bid_price","bid_amount"]
[1734328528964,0.32794926,104930.0,104920.0,0.00022881]
[1734328529612,0.42212452,104930.0,104920.0,0.00022881]
[1734328529825,0.06175986,104920.0,104910.0,0.381258]
[1734328530112,0.06175986,104920.0,104910.0,0.531258]
[1734328530347,0.12351972,104920.0,104910.0,0.15]
[1734328530485,0.31414072,104920.0,104900.0,0.571935]
[1734328530676,0.06175986,104910.0,104900.0,0.53139605]
[1734328530879,0.25238086,104920.0,104900.0,0.53139605]
[1734328531078,0.25238086,104920.0,104900.0,0.72204105]
[1734328531653,0.32878086,104920.0,104900.0,0.72204105]
[1734328532469,0.06175986,104910.0,104900.0,0.34075105]
[1734328532670,0.06175986,104910.0,104900.0,0.15010705]
[1734328532875,0.06175986,104910.0,104900.0,0.34076405]
[1734328533158,0.06175986,104910.0,104900.0,0.15010705]
[1734328533159,0.25239886,104910.0,104900.0,0.15010705]
[1734328533362,0.06175986,104910.0,104900.0,0.34076405]
[1734328533926,0.14005986,104910.0,104900.0,0.34076405]
[1734328535100,0.13581971,104910.0,104900.0,0.34076405]
[1734328535767,0.48250927,104910.0,104900.0,0.00010705]
[1734328536173,0.53110927,104910.0,104900.0,0.00010705]
[1734328536381,0.96575704,104910.0,104900.0,0.00010705]
[1734328536585,0.88027976,104910.0,104900.0,0.00010705]
[1734328536806,1.09404606,104910.0,104900.0,0.00010705]
[1734328537018,0.8803224,104910.0,104900.0,0.00010705]
[1734328537223,1.05994572,104910.0,104900.0,0.00010705]
[1734328537646,0.97449766,104910.0,104900.0,0.00010705]
[1734328537845,0.8803224,104910.0,104900.0,0.00010705]
[1734328538259,0.79476545,104910.0,104900.0,0.00010705]
[1734328539875,0.96574438,104910.0,104900.0,0.00010705]
[1734328540214,0.86413904,104910.0,104900.0,0.00010705]
[1734328540415,0.9583143,104910.0,104900.0,0.00010705]
[1734328540670,1.19105309,104910.0,104900.0,0.00010705]
[1734328540847,1.31935477,104910.0,104900.0,0.00019345]
[1734328541043,1.25759491,104910.0,104900.0,0.00019345]
[1734328541288,1.25702432,104910.0,104900.0,0.00019345]
[1734328541862,1.0435384,104910.0,104870.0,3.1558336]
[1734328542092,0.25245386,104880.0,104870.0,3.1558336]
[1734328542587,0.06175986,104880.0,104870.0,3.1558336]
[1734328542794,0.06175986,104880.0,104870.0,3.3465456]
[1734328543009,0.06175986,104880.0,104870.0,3.5372576]
[1734328543413,0.31421372,104880.0,104870.0,3.1558336]
[1734328547057,0.48950442,104880.0,104870.0,3.1558336]
[1734328547790,0.42774456,104880.0,104870.0,3.1558336]
[1734328548762,0.5765865,104880.0,104870.0,3.1558336]
[1734328550008,0.42774456,104880.0,104870.0,3.1558336]
[1734328550619,0.3659847,104880.0,104870.0,3.1558336]
[1734328550805,0.42774456,104880.0,104870.0,3.1558336]
[1734328550984,0.34674456,104880.0,104870.0,3.1558336]
[1734328553095,0.15605056,104880.0,104870.0,3.3465456]
[1734328553315,0.0942907,104880.0,104870.0,3.3465456]
[1734328556708,0.15605056,104880.0,104870.0,3.3465456]
[1734328558258,0.76845759,104900.0,104880.0,0.190694]
[1734328558259,0.47313082,104900.0,104880.0,0.190694]
[1734328558395,0.0942907,104890.0,104880.0,0.190694]
[1734328558596,0.14115986,104900.0,104880.0,0.381388]
[1734328558823,0.42610756,104900.0,104880.0,0.381377]
[1734328559028,0.42610756,104900.0,104880.0,0.572061]
[1734328559232,0.42610756,104900.0,104880.0,0.456967]
[1734328559233,0.0942907,104900.0,104880.0,0.456967]
[1734328559396,0.0942907,104900.0,104890.0,0.190675]
[1734328559843,0.38107538,104910.0,104890.0,0.572]
[1734328560158,0.47536608,104910.0,104890.0,0.572]
[1734328560572,0.28471908,104910.0,104890.0,0.381325]
[1734328560736,0.28471908,104910.0,104900.0,0.190657]
[1734328560940,0.28471908,104910.0,104890.0,0.381325]
[1734328560941,0.28471908,104910.0,104890.0,0.35573402]
[1734328561189,0.28471908,104910.0,104890.0,0.54639402]
[1734328561190,0.47535908,104910.0,104890.0,0.54639402]
[1734328561725,0.23561908,104910.0,104900.0,0.190657]
[1734328561926,0.00016852,104910.0,104900.0,0.190657]
[1734328568277,0.42256808,104910.0,104890.0,0.15]
[1734328568485,0.06175986,104900.0,104890.0,0.190675]
[1734328569470,0.06175986,104900.0,104880.0,0.504061]
[1734328569674,0.85688287,104910.0,104890.0,0.190675]
[1734328569926,0.61321908,104910.0,104890.0,0.190675]
[1734328570309,0.80387108,104910.0,104890.0,0.190675]
[1734328570715,0.61321908,104910.0,104890.0,0.190675]
[1734328571085,0.80387408,104910.0,104890.0,0.190675]
[1734328572107,0.64565445,104910.0,104890.0,0.190675]
[1734328572877,0.74211022,104910.0,104890.0,0.180675]
[1734328574301,0.55145922,104910.0,104890.0,0.180675]
[1734328574430,0.36080822,104910.0,104890.0,0.371341]
[1734328575072,0.36080822,104910.0,104890.0,0.3714274]
[1734328575227,0.36098102,104910.0,104890.0,0.3714274]
[1734328575833,0.07604132,104910.0,104900.0,0.190657]
[1734328576103,0.00034132,104910.0,104900.0,0.190657]
[1734328581430,0.19098032,104910.0,104890.0,0.5620904]
[1734328581632,0.49325071,104910.0,104890.0,0.3714254]
[1734328582682,0.68389971,104910.0,104890.0,0.3714254]
[1734328582878,0.60102002,104910.0,104890.0,0.3714254]
[1734328586125,0.60102002,104910.0,104890.0,0.35046868]
[1734328587042,0.60102002,104910.0,104890.0,0.15979468]
[1734328587605,0.60102002,104910.0,104890.0,0.16028098]
[1734328588473,0.41037102,104910.0,104890.0,0.16028098]
[1734328588906,0.60102002,104910.0,104890.0,0.16028098]
[1734328591527,0.62500808,104910.0,104890.0,0.16028098]
[1734328592003,0.68681594,104910.0,104890.0,0.16028098]
[1734328594108,0.62500808,104910.0,104890.0,0.16028098]
[1734328594668,0.62500808,104910.0,104880.0,0.38250632]
[1734328594669,0.60102002,104910.0,104880.0,0.38250632]
[1734328594890,0.0794,104900.0,104880.0,0.381366]
[1734328595102,0.270059,104900.0,104880.0,0.381366]
[1734328595326,0.270059,104900.0,104880.0,0.572049]
[1734328598470,0.270059,104900.0,104880.0,0.58734021]
[1734328598625,0.270059,104900.0,104880.0,0.39674251]
[1734328598807,0.13810786,104890.0,104880.0,0.1500863]
[1734328599030,0.266975,104890.0,104880.0,8.63e-05]
[1734328599218,0.32878286,104890.0,104880.0,8.63e-05]
[1734328599423,0.266975,104890.0,104880.0,8.63e-05]
[1734328601193,0.20097499,104890.0,104880.0,8.63e-05]
[1734328601421,0.26278285,104890.0,104880.0,8.63e-05]
[1734328602041,0.01029999,104890.0,104880.0,0.1907803]
[1734328602436,0.01029999,104890.0,104880.0,8.63e-05]
[1734328602842,0.20097499,104890.0,104880.0,8.63e-05]
[1734328603982,0.26278285,104890.0,104880.0,8.63e-05]
[1734328604758,0.49624881,104890.0,104880.0,8.63e-05]
[1734328605117,0.58178505,104890.0,104880.0,8.63e-05]
[1734328605287,0.2866348,104890.0,104880.0,8.63e-05]
[1734328605656,0.4773098,104890.0,104880.0,8.63e-05]
[1734328606296,0.60561416,104890.0,104880.0,8.63e-05]
[1734328608203,0.68371416,104890.0,104880.0,8.63e-05]
[1734328608605,0.5554098,104890.0,104880.0,8.63e-05]
[1734328609239,0.045,104890.0,104880.0,0.1907803]
[1734328609462,0.235675,104890.0,104880.0,8.63e-05]
[1734328611099,0.2358476,104890.0,104880.0,8.63e-05]
[1734328612911,0.2358476,104890.0,104880.0,0.01561064]
[1734328613167,0.2358476,104890.0,104880.0,8.63e-05]
[1734328616861,0.0451726,104890.0,104880.0,0.1907803]
[1734328618767,0.2358476,104890.0,104880.0,8.63e-05]
[1734328627459,0.68396158,104890.0,104880.0,8.63e-05]
[1734328628504,0.85501392,104890.0,104880.0,8.63e-05]
[1734328630656,0.68396158,104890.0,104880.0,8.63e-05]
[1734328630957,0.85501392,104890.0,104880.0,8.63e-05]
[1734328631718,0.68396158,104890.0,104880.0,8.63e-05]
[1734328632152,0.85501392,104890.0,104880.0,8.63e-05]
[1734328633603,0.68396158,104890.0,104880.0,8.63e-05]
[1734328634837,0.85501392,104890.0,104880.0,8.63e-05]
[1734328640466,0.98330318,104890.0,104880.0,8.63e-05]
[1734328641943,0.98388315,104890.0,104880.0,8.63e-05]
[1734328643397,0.8554489,104890.0,104880.0,8.63e-05]
[1734328643979,0.87130527,104890.0,104880.0,8.63e-05]
[1734328645176,0.9839321,104890.0,104880.0,8.63e-05]
[1734328645472,0.8554489,104890.0,104880.0,8.63e-05]
[1734328646560,0.98393585,104890.0,104880.0,8.63e-05]
[1734328646828,0.984075,104890.0,104880.0,8.63e-05]
[1734328647448,0.92226714,104890.0,104880.0,8.63e-05]
[1734328648072,0.79378491,104890.0,104880.0,8.63e-05]
[1734328648269,0.92226714,104890.0,104880.0,8.63e-05]
[1734328648513,0.79378943,104890.0,104880.0,8.63e-05]
[1734328648718,0.79378888,104890.0,104880.0,8.63e-05]
[1734328649283,1.0079259,104890.0,104880.0,8.63e-05]
[1734328649497,1.00792918,104890.0,104880.0,8.63e-05]
[1734328649623,0.92226714,104890.0,104880.0,8.63e-05]
[1734328649826,0.79379206,104890.0,104880.0,8.63e-05]
[1734328650410,0.79379351,104890.0,104880.0,8.63e-05]
[1734328655293,1.00793053,104890.0,104880.0,8.63e-05]
[1734328656395,0.92226714,104890.0,104880.0,8.63e-05]
[1734328658026,0.84406714,104890.0,104880.0,8.63e-05]
[1734328658270,0.74977644,104890.0,104880.0,8.63e-05]
[1734328658458,0.55910144,104890.0,104880.0,0.1907803]
[1734328658682,0.43064287,104890.0,104880.0,0.1907803]
[1734328660284,0.62131787,104890.0,104880.0,8.63e-05]
[1734328661543,0.74977644,104890.0,104880.0,8.63e-05]
[1734328662630,0.8115843,104890.0,104880.0,8.63e-05]
[1734328663220,0.74977644,104890.0,104880.0,8.63e-05]
[1734328665434,0.74998352,104890.0,104880.0,8.63e-05]
[1734328665607,0.81179584,104890.0,104880.0,8.63e-05]
[1734328666539,0.74998798,104890.0,104880.0,8.63e-05]
[1734328671824,0.45008728,104890.0,104870.0,3.38529084]
[1734328672982,0.64076328,104890.0,104870.0,3.38529084]
[1734328674477,0.64080041,104890.0,104870.0,3.38529084]
[1734328676396,0.71610041,104890.0,104870.0,3.38529084]
[1734328679011,0.5018236,104890.0,104870.0,3.38529084]
[1734328679215,0.7161105,104890.0,104870.0,3.38529084]
[1734328681782,0.08571476,104880.0,104870.0,3.38529084]
[1734328681987,0.13121476,104880.0,104870.0,3.11347884]
[1734328682142,0.13121566,104880.0,104870.0,3.11347884]
[1734328682343,0.72251275,104890.0,104870.0,2.87002091]
[1734328683679,0.72251275,104890.0,104870.0,3.06073191]
[1734328684615,0.53183675,104890.0,104870.0,3.25143291]
[1734328684922,0.53183675,104890.0,104870.0,3.06072191]
[1734328685770,0.53183675,104890.0,104870.0,3.25142391]
[1734328690342,0.53183675,104890.0,104870.0,3.06072191]
[1734328690549,0.72252275,104890.0,104870.0,3.06072191]
[1734328691551,0.72252275,104890.0,104870.0,3.25142391]
[1734328691985,0.72252275,104890.0,104870.0,3.06072191]
[1734328692342,0.08571566,104880.0,104870.0,2.87002091]
[1734328695113,0.01971565,104880.0,104870.0,2.87002091]
[1734328695300,0.82795407,104890.0,104870.0,3.06072291]
[1734328695635,0.63684535,104890.0,104870.0,3.06072291]
[1734328698331,0.63684535,104890.0,104870.0,3.25142391]
[1734328700213,0.44615935,104890.0,104870.0,3.25142391]
[1734328700423,0.0001726,104890.0,104880.0,0.47990186]
[1734328701264,0.0001726,104890.0,104880.0,0.59719256]
[1734328701465,0.0001726,104890.0,104880.0,0.40649856]
[1734328701593,0.0001726,104890.0,104880.0,0.65900042]
[1734328701799,0.0001726,104890.0,104880.0,0.59719256]
[1734328701999,0.0001726,104890.0,104880.0,0.74425353]
[1734328702722,0.0001726,104890.0,104880.0,0.59719256]
[1734328705156,0.39662006,104920.0,104890.0,0.023]
[1734328705335,0.49091076,104920.0,104900.0,0.381314]
[1734328707281,0.68153176,104920.0,104900.0,0.381314]
[1734328707502,0.49091076,104920.0,104900.0,0.381314]
[1734328708304,0.54021076,104920.0,104900.0,0.381314]
[1734328708510,0.64527247,104920.0,104900.0,0.381314]
[1734328708706,0.64527247,104920.0,104900.0,0.190657]
[1734328708707,0.73084276,104920.0,104900.0,0.190657]
[1734328709111,0.25244686,104910.0,104900.0,0.190657]
[1734328709336,0.190639,104910.0,104900.0,0.190657]
[1734328710881,0.190639,104910.0,104890.0,0.571997]
[1734328712013,0.272839,104910.0,104890.0,0.571997]
[1734328713173,0.33464686,104910.0,104890.0,0.571997]
[1734328716001,0.33464686,104910.0,104890.0,0.381327]
[1734328716203,0.272839,104910.0,104900.0,0.190657]
[1734328716428,0.78250558,104920.0,104900.0,0.190657]
[1734328716429,0.26343411,104920.0,104900.0,0.190657]
[1734328716641,0.40646489,104920.0,104900.0,0.571947]
[1734328716858,0.38270246,104920.0,104900.0,0.38129]
[1734328718099,0.65878174,104920.0,104900.0,0.38129]
[1734328718517,0.57333246,104920.0,104900.0,0.38129]
[1734328719522,0.57333246,104920.0,104900.0,0.190647]
[1734328720182,0.57333246,104920.0,104900.0,0.381295]
[1734328722577,0.38270246,104920.0,104900.0,0.381295]
[1734328722785,0.38270246,104920.0,104900.0,0.571943]
[1734328722989,0.38270246,104920.0,104900.0,0.381295]
[1734328724099,0.38270246,104920.0,104900.0,0.39899053]
[1734328724285,0.57333146,104920.0,104900.0,0.39899053]
[1734328724705,0.06180786,104910.0,104900.0,0.39899053]
[1734328726006,0.57333146,104920.0,104900.0,0.39899053]
[1734328733403,0.65876473,104920.0,104900.0,0.39899053]
[1734328733620,0.57333146,104920.0,104900.0,0.39899053]
[1734328734115,0.65876473,104920.0,104900.0,0.39899053]
[1734328736074,0.46813573,104920.0,104900.0,0.39899053]
[1734328736295,0.46813573,104920.0,104900.0,0.58963853]
[1734328736457,0.46813573,104920.0,104900.0,0.39899053]
[1734328736657,0.46813573,104920.0,104900.0,0.39907683]
[1734328737171,0.46813573,104920.0,104910.0,0.190639]
[1734328737172,0.21570587,104920.0,104910.0,0.190639]
[1734328737381,0.16640587,104920.0,104910.0,0.190639]
[1734328739377,0.35702687,104920.0,104910.0,0.190639]
[1734328740206,0.41883473,104920.0,104900.0,0.66752283]
[1734328740408,0.54698463,104920.0,104900.0,0.58972283]
[1734328743115,0.48517677,104920.0,104900.0,0.58972283]
[1734328744404,0.65681504,104920.0,104900.0,0.58972283]
[1734328745425,0.08560476,104910.0,104900.0,0.39907583]
[1734328745699,0.08560476,104910.0,104900.0,0.42207583]
[1734328749230,0.08568993,104910.0,104900.0,0.42207583]
[1734328750688,0.08568993,104910.0,104900.0,0.70157439]
[1734328750919,0.38577729,104920.0,104910.0,0.190639]
[1734328751128,0.21439743,104920.0,104910.0,0.190639]
[1734328752397,0.21439743,104920.0,104910.0,0.19158941]
[1734328755640,0.21439743,104920.0,104910.0,0.21458941]
[1734328755842,0.21439743,104920.0,104910.0,0.59813756]
[1734328755843,0.0001726,104920.0,104910.0,0.59813756]
[1734328756057,0.0001726,104920.0,104910.0,0.64533756]
[1734328756351,0.0001726,104920.0,104910.0,0.73046236]
[1734328756566,0.0001726,104920.0,104910.0,0.64533756]
[1734328756787,0.0001726,104920.0,104910.0,0.73046236]
[1734328757597,0.0001726,104920.0,104910.0,0.64533756]
[1734328757815,0.0001726,104920.0,104910.0,0.60833292]
[1734328758031,0.0001726,104920.0,104910.0,0.67014078]
[1734328760151,0.76472199,104950.0,104910.0,0.66465495]
[1734328760360,0.76472199,104950.0,104930.0,0.190598]
[1734328760511,0.76472199,104950.0,104930.0,0.3812]
[1734328760512,0.63618709,104950.0,104930.0,0.3812]
[1734328761540,0.63635574,104950.0,104930.0,0.3812]
[1734328763236,0.55066581,104950.0,104930.0,0.3812]
[1734328763911,0.55066581,104950.0,104930.0,0.16638336]
[1734328764119,0.55066581,104950.0,104930.0,0.35698536]
[1734328765122,0.55066581,104950.0,104930.0,0.16638336]
[1734328765123,0.74124481,104950.0,104930.0,0.16638336]
[1734328765323,0.55066581,104950.0,104930.0,0.16638336]
[1734328767445,0.55066581,104950.0,104940.0,0.340585]
[1734328767446,0.00016865,104950.0,104940.0,0.340585]
[1734328767829,0.00016865,104950.0,104940.0,0.4578757]
[1734328771233,0.00034125,104950.0,104940.0,0.4578757]
[1734328772410,0.00034125,104950.0,104940.0,0.47653853]
[1734328774278,0.00034125,104950.0,104940.0,0.47635107]
[1734328775122,0.00034125,104950.0,104940.0,0.45768824]
[1734328775261,0.01602754,104960.0,104940.0,0.64827324]
[1734328775465,0.01602754,104960.0,104940.0,0.64844189]
[1734328775662,0.01602754,104960.0,104950.0,0.190566]
[1734328777605,0.0778354,104960.0,104940.0,0.74472719]
[1734328777935,0.06180786,104950.0,104940.0,0.34055719]
[1734328778348,0.14480786,104950.0,104940.0,0.34055719]
[1734328778884,0.083,104950.0,104940.0,0.34055719]
[1734328781415,0.01699999,104950.0,104940.0,0.34055719]
[1734328781923,0.07880785,104950.0,104940.0,0.34055719]
[1734328782515,0.07889415,104950.0,104940.0,0.34055719]
[1734328785217,0.01289414,104950.0,104940.0,0.34055719]
[1734328786005,8.63e-05,104950.0,104940.0,0.34055719]
[1734328790516,0.32876016,104950.0,104940.0,0.00016865]
[1734328790763,0.18310786,104950.0,104940.0,0.00016865]
[1734328791005,0.37367386,104950.0,104940.0,0.00016865]
[1734328794948,0.37376016,104950.0,104940.0,0.00016865]
[1734328798108,0.46805086,104950.0,104940.0,0.00016865]
[1734328798943,0.55329003,104950.0,104940.0,0.00016865]
[1734328799361,0.20662547,104950.0,104940.0,0.00016865]
[1734328799575,8.63e-05,104950.0,104940.0,0.19075365]
[1734328804698,8.63e-05,104950.0,104940.0,0.19170645]
[1734328804918,8.63e-05,104950.0,104940.0,0.65360501]
[1734328805122,8.63e-05,104950.0,104940.0,0.65265221]
[1734328805342,8.63e-05,104950.0,104940.0,0.59084435]
[1734328806061,8.63e-05,104950.0,104940.0,0.60659792]
[1734328807182,8.63e-05,104950.0,104940.0,0.42382625]
[1734328807183,0.06189416,104950.0,104940.0,0.42382625]
[1734328807355,0.25246016,104950.0,104940.0,0.15034125]
[1734328807560,0.25246016,104950.0,104940.0,0.00034125]
[1734328807763,0.33800022,104950.0,104940.0,0.00034125]
[1734328808729,0.27619236,104950.0,104940.0,0.00034125]
[1734328808926,0.33800022,104950.0,104940.0,0.00034125]
[1734328810174,0.14734792,104950.0,104940.0,0.00034125]
[1734328810516,0.51410462,104950.0,104940.0,0.00034125]
[1734328810925,0.64241471,104950.0,104940.0,0.00034125]
[1734328811166,0.75352257,104950.0,104940.0,0.00034125]
[1734328811597,0.92460269,104950.0,104940.0,0.00034125]
[1734328811799,0.83906263,104950.0,104940.0,0.00034125]
[1734328812156,0.80958951,104950.0,104940.0,0.00034125]
[1734328812968,0.269603,104930.0,104910.0,0.381268]
[1734328813182,0.5543576,104930.0,104910.0,0.381268]
[1734328813748,0.5543576,104930.0,104910.0,0.19063]
[1734328813971,0.6956483,104930.0,104900.0,0.44566008]
[1734328814174,0.2847636,104920.0,104900.0,8.63e-05]
[1734328814376,0.3647816,104910.0,104900.0,8.63e-05]
[1734328814579,0.68578346,104910.0,104900.0,8.63e-05]
[1734328815115,0.71998171,104910.0,104900.0,8.63e-05]
[1734328815243,0.59162886,104910.0,104900.0,8.63e-05]
[1734328815847,0.59162886,104910.0,104900.0,0.00025482]
[1734328816321,0.5060723,104910.0,104900.0,0.00025482]
[1734328816454,0.69439016,104910.0,104900.0,0.00525482]
[1734328816661,0.77994672,104910.0,104900.0,0.00525482]
[1734328816863,1.00829957,104910.0,104900.0,0.00525482]
[1734328817081,1.32937969,104910.0,104900.0,0.00525482]
[1734328817471,1.15829957,104910.0,104900.0,0.00525482]
[1734328818077,1.40829957,104910.0,104900.0,0.00525482]
[1734328818279,1.52911067,104910.0,104900.0,0.00525482]
[1734328818482,1.44382313,104910.0,104900.0,0.00525482]
[1734328819124,1.49382313,104910.0,104900.0,0.00525482]
[1734328819362,1.52905089,104910.0,104900.0,0.00525482]
[1734328819584,1.57905089,104910.0,104900.0,0.00525482]
[1734328819786,1.52905089,104910.0,104900.0,0.00525482]
[1734328820202,1.54765492,104910.0,104900.0,0.00525482]
[1734328820404,1.3765748,104910.0,104900.0,0.00525482]
[1734328820601,1.03239954,104910.0,104900.0,0.00525482]
[1734328821022,1.08239954,104910.0,104900.0,0.00525482]
[1734328821661,1.03239954,104910.0,104900.0,0.00525482]
[1734328821870,0.72467633,104910.0,104900.0,0.00525482]
[1734328822480,0.516557,104900.0,104890.0,8.63e-05]
[1734328822679,0.7549903,104900.0,104890.0,8.63e-05]
[1734328825183,0.7049903,104900.0,104890.0,8.63e-05]
[1734328825393,0.6549903,104900.0,104890.0,8.63e-05]
[1734328825568,0.3347477,104900.0,104890.0,8.63e-05]
[1734328825997,0.190657,104900.0,104890.0,8.63e-05]
[1734328826350,0.190657,104900.0,104890.0,0.0783863]
[1734328830358,0.2847996,104900.0,104890.0,8.63e-05]
[1734328830975,0.4131357,104900.0,104890.0,8.63e-05]
[1734328831599,0.3790903,104900.0,104890.0,8.63e-05]
[1734328833474,0.4554903,104900.0,104890.0,8.63e-05]
[1734328837561,0.3790903,104900.0,104890.0,8.63e-05]
[1734328837759,0.3790903,104900.0,104890.0,0.0758863]
[1734328837760,0.190657,104900.0,104890.0,0.0758863]
[1734328838229,0.38163309,104910.0,104890.0,0.0758863]
[1734328838364,0.19098009,104910.0,104890.0,0.2665513]
[1734328838563,0.38162909,104910.0,104890.0,0.2665513]
[1734328838957,0.38162909,104910.0,104890.0,0.4572263]
[1734328839332,0.19098009,104910.0,104890.0,0.6478913]
[1734328839534,0.19098009,104910.0,104890.0,0.4572163]
[1734328841152,0.19098009,104910.0,104890.0,0.4572153]
[1734328841723,0.19098009,104910.0,104890.0,0.6478793]
[1734328841925,0.47577369,104910.0,104890.0,0.4572163]
[1734328842645,0.00034109,104910.0,104900.0,0.190657]
[1734328842864,0.00034109,104910.0,104900.0,0.343757]
[1734328843071,0.00034109,104910.0,104900.0,0.35798335]
[1734328843505,0.00034109,104910.0,104900.0,0.54864035]
[1734328845147,0.190597,104940.0,104900.0,0.5072477]
[1734328845348,0.3790303,104940.0,104910.0,0.213626]
[1734328845549,0.190604,104930.0,104910.0,0.404254]
[1734328845884,0.190604,104930.0,104910.0,0.59488]
[1734328846099,0.190604,104930.0,104910.0,0.67548]
[1734328847277,0.190604,104930.0,104910.0,0.484852]
[1734328849476,0.19043244,104930.0,104910.0,0.484852]
[1734328849677,0.19043244,104930.0,104910.0,0.49935548]
[1734328852276,0.7602203,104940.0,104910.0,0.49935548]
[1734328852921,8.63e-05,104930.0,104910.0,0.49935548]
[1734328853143,8.63e-05,104930.0,104910.0,0.68998248]
[1734328853897,0.1906893,104930.0,104910.0,0.49935548]
[1734328854307,0.1906893,104930.0,104910.0,0.68998548]
[1734328854845,0.1906893,104930.0,104910.0,0.49935548]
[1734328855094,0.1906893,104930.0,104910.0,0.68998348]
[1734328855499,0.73748529,104930.0,104910.0,0.15]
[1734328855718,0.190621,104920.0,104910.0,0.15]
[1734328855868,0.78528529,104930.0,104910.0,0.15]
[1734328856078,0.6998366,104930.0,104910.0,0.15]
[1734328856661,0.8904536,104930.0,104910.0,0.340639]
[1734328858530,0.6998366,104930.0,104910.0,0.340639]
[1734328858952,0.8904516,104930.0,104910.0,0.340639]
[1734328860506,0.6998366,104930.0,104910.0,0.340639]
[1734328860721,0.1301863,104930.0,104910.0,0.531252]
[1734328860926,8.63e-05,104930.0,104910.0,0.531252]
[1734328861129,8.63e-05,104930.0,104920.0,0.268421]
[1734328862108,8.63e-05,104930.0,104910.0,0.34091645]
[1734328862287,8.63e-05,104930.0,104910.0,0.268423]
[1734328862499,8.63e-05,104930.0,104920.0,0.190621]
[1734328865094,0.07553042,104940.0,104920.0,0.381242]
[1734328865292,8.63e-05,104940.0,104930.0,0.190603]
[1734328865708,8.63e-05,104940.0,104930.0,0.272403]
[1734328867834,8.63e-05,104940.0,104930.0,0.190603]
[1734328869166,0.1906713,104940.0,104920.0,0.700631]
[1734328869715,0.1906713,104940.0,104920.0,0.51002]
[1734328869917,0.1906713,104940.0,104920.0,0.52488115]
[1734328870227,0.1906713,104940.0,104920.0,0.71549115]
[1734328870397,0.1906713,104940.0,104920.0,0.52488015]
[1734328870646,0.1906713,104940.0,104920.0,0.71549215]
[1734328870999,0.3812643,104940.0,104920.0,0.47888015]
[1734328871327,0.3812643,104940.0,104920.0,0.28827015]
[1734328871525,0.3812643,104940.0,104920.0,0.39608215]
[1734328871889,0.3812643,104940.0,104920.0,0.20547015]
[1734328872297,0.3812643,104940.0,104920.0,0.39609115]
[1734328872727,8.63e-05,104940.0,104920.0,0.39608215]
[1734328872930,8.63e-05,104940.0,104930.0,0.190603]
[1734328877221,8.63e-05,104940.0,104930.0,0.3078937]
[1734328877424,8.63e-05,104940.0,104930.0,0.3909937]
[1734328880306,0.0827,104960.0,104940.0,0.190575]
[1734328880554,0.273249,104960.0,104940.0,0.381151]
[1734328881519,0.46396668,104960.0,104940.0,0.381151]
[1734328881762,0.27341768,104960.0,104940.0,0.381151]
[1734328882233,0.46396668,104960.0,104940.0,0.381151]
[1734328883700,0.27341768,104960.0,104940.0,0.571725]
[1734328883946,0.27341768,104960.0,104940.0,0.381149]
[1734328884161,0.27341768,104960.0,104940.0,0.381148]
[1734328885866,0.46397468,104960.0,104940.0,0.190574]
[1734328886083,0.46397468,104960.0,104940.0,0.38115]
[1734328887379,0.46397568,104960.0,104940.0,0.38115]
[1734328889055,0.46406198,104960.0,104940.0,0.38115]
[1734328889268,0.54948682,104960.0,104940.0,0.38115]
[1734328889468,0.46406198,104960.0,104940.0,0.38115]
[1734328890523,0.65249528,104960.0,104930.0,0.4644566]
[1734328890722,0.65249528,104960.0,104930.0,0.4644516]
[1734328890723,0.190576,104950.0,104930.0,0.4644516]
[1734328890945,0.6002966,104950.0,104930.0,0.1907616]
[1734328891302,0.4097186,104950.0,104930.0,0.1907616]
[1734328891502,0.4097186,104950.0,104930.0,0.3813526]
[1734328892125,0.37733691,104950.0,104930.0,0.3813526]
[1734328892599,0.56790391,104950.0,104930.0,0.3813526]
[1734328892807,0.18676091,104950.0,104930.0,0.3813526]
[1734328893019,0.08571924,104960.0,104950.0,0.190566]
[1734328893363,0.00025498,104960.0,104950.0,0.190566]
[1734328893632,0.06201589,104960.0,104950.0,0.190566]
[1734328894051,0.00025498,104960.0,104950.0,0.190566]
[1734328894255,0.08571924,104960.0,104950.0,0.190566]
[1734328894459,0.08570404,104960.0,104950.0,0.190566]
[1734328894873,0.08570404,104960.0,104940.0,0.798318]
[1734328895078,0.27625204,104960.0,104940.0,0.8926087]
[1734328895908,0.08570404,104960.0,104950.0,0.190566]
[1734328896110,0.00025498,104960.0,104950.0,0.190566]
[1734328896267,0.08570404,104960.0,104950.0,0.190566]
[1734328896618,0.00025498,104960.0,104950.0,0.190566]
[1734328897362,0.08570404,104960.0,104950.0,0.190566]
[1734328899085,0.08570055,104960.0,104950.0,0.190566]
[1734328903331,0.27624855,104960.0,104950.0,0.190566]
[1734328903548,0.27627592,104960.0,104950.0,0.190566]
[1734328904800,0.27627592,104960.0,104940.0,0.90623296]
[1734328905435,0.40448533,104960.0,104940.0,0.90599496]
[1734328905790,0.08572792,104960.0,104950.0,0.190566]
[1734328906219,0.08574853,104960.0,104950.0,0.190566]
[1734328908125,0.08575542,104960.0,104950.0,0.190566]
[1734328908738,0.21400609,104960.0,104950.0,0.190566]
[1734328909651,0.21400609,104960.0,104950.0,0.19136479]
[1734328910491,0.08575542,104960.0,104950.0,0.19136479]
[1734328912454,0.00025498,104960.0,104950.0,0.19136479]
[1734328912741,0.08578061,104960.0,104950.0,0.19136479]
[1734328912942,0.00025498,104960.0,104950.0,0.190566]
[1734328914051,0.06199711,104960.0,104950.0,0.190566]
[1734328914212,0.00025498,104960.0,104950.0,0.190566]
[1734328914816,0.06199711,104960.0,104950.0,0.190566]
[1734328916227,0.06199711,104960.0,104950.0,0.20927892]
[1734328917341,0.00025498,104960.0,104950.0,0.20927892]
[1734328918867,0.06199711,104960.0,104950.0,0.20927892]
[1734328920790,0.00025498,104960.0,104950.0,0.20927892]
[1734328923711,0.08578061,104960.0,104950.0,0.20927892]
[1734328924129,0.00025498,104960.0,104950.0,0.20927892]
[1734328924261,0.08578061,104960.0,104950.0,0.20927892]
[1734328925226,0.00025498,104960.0,104950.0,0.20927892]
[1734328925431,0.00025498,104960.0,104950.0,0.35927892]
[1734328925634,0.00025498,104960.0,104950.0,0.55746962]
[1734328936716,0.00025498,104960.0,104950.0,0.55742162]
[1734328939689,0.0013862,104970.0,104960.0,0.15]
[1734328939690,0.06312833,104970.0,104960.0,0.15]
[1734328939833,0.06312833,104970.0,104960.0,0.340548]
[1734328940036,0.0013862,104970.0,104960.0,0.340548]
[1734328940234,0.06312833,104970.0,104960.0,0.340548]
[1734328941739,0.0013862,104970.0,104960.0,0.340548]
[1734328947244,0.0013862,104970.0,104960.0,0.35402896]
[1734328947650,0.06312833,104970.0,104960.0,0.35402896]
[1734328947852,0.0013862,104970.0,104960.0,0.35402896]
[1734328949870,0.13872833,104970.0,104960.0,0.35402896]
[1734328953860,0.0769862,104970.0,104960.0,0.35402896]
[1734328955874,0.16249744,104970.0,104960.0,0.35402896]
[1734328956076,0.0769862,104970.0,104960.0,0.35402896]
[1734328956277,0.16249744,104970.0,104960.0,0.35402896]